[Event "Live Chess"]
[Site "Chess.com"]
[Date "2024.06.02"]
[Round "-"]
[White "Queensandpawns"]
[Black "NAZRIZ1977"]
[Result "1-0"]
[WhiteElo "2271"]
[BlackElo "2124"]
[TimeControl "300"]
[EndTime "1:36:38 PDT"]
[Termination "Queensandpawns won by resignation"]

1. e4 {[%clk 0:04:59.2]} 1... d6 {[%clk 0:04:58.5]} 2. f4 {[%clk 0:04:54.1]}
2... e5 {[%clk 0:04:53.3]} 3. Nf3 {[%clk 0:04:53.3]} 3... Nc6 {[%clk 0:04:50.3]}
4. Bb5 {[%clk 0:04:51.3]} 4... Bd7 {[%clk 0:04:44.3]} 5. O-O {[%clk 0:04:50.3]}
5... exf4 {[%clk 0:04:43.2]} 6. d4 {[%clk 0:04:49.3]} 6... a6 {[%clk 0:04:40.2]}
7. Bxc6 {[%clk 0:04:46.4]} 7... Bxc6 {[%clk 0:04:37.9]} 8. Bxf4 {[%clk
0:04:46.3]} 8... Nf6 {[%clk 0:04:31.6]} 9. d5 {[%clk 0:04:44.6]} 9... Bd7 {[%clk
0:04:30.4]} 10. Nc3 {[%clk 0:04:44.5]} 10... Be7 {[%clk 0:04:28.4]} 11. Qd2
{[%clk 0:04:34.6]} 11... O-O {[%clk 0:04:27.2]} 12. Rae1 {[%clk 0:04:25.9]}
12... Nh5 {[%clk 0:04:22.8]} 13. Be3 {[%clk 0:04:22.4]} 13... b5 {[%clk
0:04:14]} 14. Nd4 {[%clk 0:04:21.7]} 14... Nf6 {[%clk 0:04:03.7]} 15. Nf5 {[%clk
0:04:20.9]} 15... Ng4 {[%clk 0:03:55.4]} 16. Bd4 {[%clk 0:04:16.3]} 16... Bf6
{[%clk 0:03:49.1]} 17. h3 {[%clk 0:04:03.1]} 17... Ne5 {[%clk 0:03:44.1]} 18.
Qf2 {[%clk 0:03:56.3]} 18... Bxf5 {[%clk 0:03:42]} 19. Qxf5 {[%clk 0:03:54.5]}
19... Qc8 {[%clk 0:03:40.8]} 20. Qh5 {[%clk 0:03:49.4]} 20... g6 {[%clk
0:03:33.2]} 21. Qe2 {[%clk 0:03:44.9]} 21... Bg7 {[%clk 0:03:32.2]} 22. Nd1
{[%clk 0:03:41.5]} 22... c5 {[%clk 0:03:27.6]} 23. Bxe5 {[%clk 0:03:40.1]} 23...
dxe5 {[%clk 0:03:26.1]} 24. Ne3 {[%clk 0:03:40]} 24... f5 {[%clk 0:03:04.5]} 25.
exf5 {[%clk 0:03:34.5]} 25... e4 {[%clk 0:03:04.4]} 26. fxg6 {[%clk 0:03:31]}
26... hxg6 {[%clk 0:03:03.1]} 27. Ng4 {[%clk 0:03:30]} 27... Bxb2 {[%clk
0:02:58.1]} 28. Qxe4 {[%clk 0:03:28.7]} 28... Kg7 {[%clk 0:02:49.9]} 29. Qe7+
{[%clk 0:03:26.7]} 29... Kh8 {[%clk 0:02:44.8]} 30. Qh4+ {[%clk 0:03:15.4]}
30... Kg8 {[%clk 0:02:40.7]} 31. Nh6+ {[%clk 0:03:09.2]} 31... Kg7 {[%clk
0:02:39.1]} 32. Re7+ {[%clk 0:03:08]} 1-0

[Event "Live Chess"]
[Site "Chess.com"]
[Date "2024.06.02"]
[Round "-"]
[White "NottheBishopSacrifice"]
[Black "lateforthesky"]
[Result "1-0"]
[WhiteElo "2316"]
[BlackElo "2080"]
[TimeControl "300"]
[EndTime "1:36:43 PDT"]
[Termination "NottheBishopSacrifice won by resignation"]

1. d4 {[%clk 0:04:58.5]} 1... Nf6 {[%clk 0:04:57.7]} 2. c4 {[%clk 0:04:57.1]}
2... g6 {[%clk 0:04:57]} 3. g3 {[%clk 0:04:55.5]} 3... Bg7 {[%clk 0:04:55.8]} 4.
Bg2 {[%clk 0:04:55.2]} 4... d6 {[%clk 0:04:55.1]} 5. Nc3 {[%clk 0:04:53.2]} 5...
O-O {[%clk 0:04:53.9]} 6. h3 {[%clk 0:04:52.8]} 6... Nbd7 {[%clk 0:04:52.3]} 7.
Nf3 {[%clk 0:04:50.6]} 7... e5 {[%clk 0:04:48.8]} 8. O-O {[%clk 0:04:50]} 8...
exd4 {[%clk 0:04:46.9]} 9. Nxd4 {[%clk 0:04:48.3]} 9... Re8 {[%clk 0:04:46.4]}
10. e4 {[%clk 0:04:46.2]} 10... a6 {[%clk 0:04:41.2]} 11. Re1 {[%clk 0:04:43.6]}
11... Rb8 {[%clk 0:04:39.6]} 12. Bf4 {[%clk 0:04:41.4]} 12... h6 {[%clk
0:04:08.7]} 13. Qd2 {[%clk 0:04:37.6]} 13... g5 {[%clk 0:04:06.8]} 14. Be3
{[%clk 0:04:35.2]} 14... Ne5 {[%clk 0:04:03.7]} 15. b3 {[%clk 0:04:32.3]} 15...
c5 {[%clk 0:04:01.7]} 16. Nf5 {[%clk 0:04:29.9]} 16... Bxf5 {[%clk 0:04:00.3]}
17. exf5 {[%clk 0:04:29.8]} 17... Qd7 {[%clk 0:03:44.9]} 18. Nd5 {[%clk
0:04:22.6]} 18... Nxd5 {[%clk 0:03:41.2]} 19. Bxd5 {[%clk 0:04:22.5]} 19... Qxf5
{[%clk 0:03:37.7]} 20. Rad1 {[%clk 0:04:19.4]} 20... Qxh3 {[%clk 0:03:34]} 21.
Bg2 {[%clk 0:04:12.9]} 21... Qf5 {[%clk 0:03:32.7]} 22. Qxd6 {[%clk 0:04:12.1]}
22... Nf3+ {[%clk 0:03:23.7]} 23. Bxf3 {[%clk 0:04:09.9]} 23... Qxf3 {[%clk
0:03:22.8]} 24. Qxc5 {[%clk 0:04:06.6]} 24... Bc3 {[%clk 0:03:09.7]} 25. Rf1
{[%clk 0:04:02]} 25... Re5 {[%clk 0:03:04.2]} 26. Qa7 {[%clk 0:03:59]} 26...
Rbe8 {[%clk 0:03:02.5]} 27. Bd4 {[%clk 0:03:57.6]} 27... Bxd4 {[%clk 0:02:51.9]}
28. Qxd4 {[%clk 0:03:57.5]} 28... Re2 {[%clk 0:02:50.7]} 29. Rd2 {[%clk
0:03:49.3]} 29... Rxd2 {[%clk 0:02:47.5]} 30. Qxd2 {[%clk 0:03:47.5]} 30... Re2
{[%clk 0:02:46.2]} 31. Qd8+ {[%clk 0:03:46.2]} 31... Kg7 {[%clk 0:02:44.6]} 32.
Qd4+ {[%clk 0:03:44.8]} 32... Kg6 {[%clk 0:02:42]} 33. Qd6+ {[%clk 0:03:39.8]}
33... Kg7 {[%clk 0:02:37.3]} 34. Qd4+ {[%clk 0:03:37.2]} 34... Kg6 {[%clk
0:02:36.4]} 35. Qb6+ {[%clk 0:03:36.5]} 35... Kg7 {[%clk 0:02:33.5]} 36. a4
{[%clk 0:03:35.5]} 36... h5 {[%clk 0:02:27.4]} 37. Qc5 {[%clk 0:03:19.1]} 37...
Kg6 {[%clk 0:02:24.2]} 38. Qd6+ {[%clk 0:03:14.6]} 38... Kg7 {[%clk 0:02:19.5]}
39. Qd4+ {[%clk 0:03:11.9]} 39... Kg6 {[%clk 0:02:17.2]} 40. Qh8 {[%clk
0:03:05.3]} 40... Rxf2 {[%clk 0:02:02.6]} 41. Rxf2 {[%clk 0:02:47.8]} 41...
Qxg3+ {[%clk 0:02:00.4]} 42. Kf1 {[%clk 0:02:47.1]} 42... Qd3+ {[%clk
0:01:55.7]} 43. Ke1 {[%clk 0:02:44.6]} 43... Qe3+ {[%clk 0:01:49.4]} 44. Kf1
{[%clk 0:02:37.2]} 44... Qh3+ {[%clk 0:01:42.2]} 45. Ke2 {[%clk 0:02:34.2]}
45... Qg4+ {[%clk 0:01:40.8]} 46. Kd2 {[%clk 0:02:33.1]} 1-0

[Event "Live Chess"]
[Site "Chess.com"]
[Date "2024.06.02"]
[Round "-"]
[White "Dhaydon19"]
[Black "RichardABates"]
[Result "1-0"]
[WhiteElo "2636"]
[BlackElo "2370"]
[TimeControl "300"]
[EndTime "1:36:57 PDT"]
[Termination "Dhaydon19 won by checkmate"]

1. d4 {[%clk 0:04:59.2]} 1... Nf6 {[%clk 0:04:58.2]} 2. Nf3 {[%clk 0:04:59.1]}
2... g6 {[%clk 0:04:56.5]} 3. g3 {[%clk 0:04:59]} 3... Bg7 {[%clk 0:04:54.9]} 4.
Bg2 {[%clk 0:04:58.9]} 4... O-O {[%clk 0:04:53.8]} 5. O-O {[%clk 0:04:58.8]}
5... d6 {[%clk 0:04:52.8]} 6. c3 {[%clk 0:04:58.7]} 6... Nbd7 {[%clk 0:04:46.8]}
7. Nbd2 {[%clk 0:04:58.6]} 7... e5 {[%clk 0:04:45.1]} 8. e4 {[%clk 0:04:58.5]}
8... Re8 {[%clk 0:04:42.8]} 9. Re1 {[%clk 0:04:56.6]} 9... exd4 {[%clk
0:04:37.5]} 10. cxd4 {[%clk 0:04:56.5]} 10... c5 {[%clk 0:04:36.2]} 11. b3
{[%clk 0:04:28.5]} 11... cxd4 {[%clk 0:04:33.6]} 12. Bb2 {[%clk 0:04:19]} 12...
Ne5 {[%clk 0:04:07.4]} 13. Bxd4 {[%clk 0:04:14.7]} 13... Nc6 {[%clk 0:04:05.9]}
14. Bb2 {[%clk 0:04:06.3]} 14... d5 {[%clk 0:04:04]} 15. exd5 {[%clk 0:03:59.8]}
15... Rxe1+ {[%clk 0:03:57.9]} 16. Qxe1 {[%clk 0:03:50.7]} 16... Nxd5 {[%clk
0:03:50.9]} 17. Bxg7 {[%clk 0:03:45.8]} 17... Kxg7 {[%clk 0:03:49.6]} 18. Nc4
{[%clk 0:03:44.5]} 18... Be6 {[%clk 0:03:45.5]} 19. Rd1 {[%clk 0:03:42.9]} 19...
Qf6 {[%clk 0:03:38]} 20. Nfe5 {[%clk 0:03:36.3]} 20... Nxe5 {[%clk 0:03:32.7]}
21. Nxe5 {[%clk 0:03:33.6]} 21... Rd8 {[%clk 0:03:29.1]} 22. Rd4 {[%clk
0:03:23.2]} 22... a5 {[%clk 0:03:09.7]} 23. f4 {[%clk 0:03:17]} 23... Nb4 {[%clk
0:03:06]} 24. Qd2 {[%clk 0:03:00]} 24... Rxd4 {[%clk 0:02:47.6]} 25. Qxd4 {[%clk
0:02:59.9]} 25... b5 {[%clk 0:02:42.3]} 26. a3 {[%clk 0:02:54]} 26... Nc2 {[%clk
0:02:28.1]} 27. Qc3 {[%clk 0:02:51.3]} 27... Nxa3 {[%clk 0:02:05.3]} 28. Qxa5
{[%clk 0:02:49.8]} 28... Nc2 {[%clk 0:01:58.8]} 29. Qc3 {[%clk 0:02:46.4]} 29...
Bf5 {[%clk 0:01:44.9]} 30. g4 {[%clk 0:02:38.5]} 30... b4 {[%clk 0:01:19.1]} 31.
Qd2 {[%clk 0:02:24.7]} 31... Qb6+ {[%clk 0:01:07.2]} 32. Kh1 {[%clk 0:02:22.8]}
32... Qa7 {[%clk 0:00:59.9]} 33. h3 {[%clk 0:02:09.8]} 33... Qa1+ {[%clk
0:00:54.5]} 34. Kh2 {[%clk 0:02:08.5]} 34... Qc3 {[%clk 0:00:53.1]} 35. Qxc3
{[%clk 0:02:06.3]} 35... bxc3 {[%clk 0:00:52]} 36. gxf5 {[%clk 0:02:05.5]} 36...
Ne1 {[%clk 0:00:48.2]} 37. Be4 {[%clk 0:01:59.5]} 37... c2 {[%clk 0:00:46.7]}
38. Bxc2 {[%clk 0:01:56.9]} 38... Nxc2 {[%clk 0:00:45.5]} 39. fxg6 {[%clk
0:01:54.9]} 39... hxg6 {[%clk 0:00:44.2]} 40. Kg3 {[%clk 0:01:52.5]} 40... Kf6
{[%clk 0:00:40.8]} 41. h4 {[%clk 0:01:49.2]} 41... Nd4 {[%clk 0:00:35.8]} 42. b4
{[%clk 0:01:46.1]} 42... Kf5 {[%clk 0:00:34.1]} 43. Nxf7 {[%clk 0:01:42]} 43...
Ne2+ {[%clk 0:00:32.9]} 44. Kf3 {[%clk 0:01:39.9]} 44... Nxf4 {[%clk 0:00:31.8]}
45. Nd6+ {[%clk 0:01:36.8]} 45... Ke5 {[%clk 0:00:30.7]} 46. Nc4+ {[%clk
0:01:32.1]} 46... Kf5 {[%clk 0:00:29.2]} 47. b5 {[%clk 0:01:30.2]} 47... Nd5
{[%clk 0:00:26.4]} 48. Ne3+ {[%clk 0:01:28.2]} 48... Nxe3 {[%clk 0:00:14]} 49.
Kxe3 {[%clk 0:01:28.1]} 49... Kg4 {[%clk 0:00:12.3]} 50. b6 {[%clk 0:01:26.8]}
50... Kxh4 {[%clk 0:00:11.4]} 51. b7 {[%clk 0:01:25.9]} 51... g5 {[%clk
0:00:10.6]} 52. b8=Q {[%clk 0:01:25.8]} 52... g4 {[%clk 0:00:09.5]} 53. Kf4
{[%clk 0:01:24.2]} 53... g3 {[%clk 0:00:07.7]} 54. Qh8# {[%clk 0:01:22.5]} 1-0

[Event "Live Chess"]
[Site "Chess.com"]
[Date "2024.06.02"]
[Round "-"]
[White "Tatarinov_Maxim"]
[Black "ProfessorChess101"]
[Result "0-1"]
[WhiteElo "2269"]
[BlackElo "2725"]
[TimeControl "300"]
[EndTime "1:37:07 PDT"]
[Termination "ProfessorChess101 won on time"]

1. Nf3 {[%clk 0:04:56]} 1... d5 {[%clk 0:04:58.9]} 2. g3 {[%clk 0:04:54.7]} 2...
Nc6 {[%clk 0:04:57.9]} 3. d4 {[%clk 0:04:53.2]} 3... Bf5 {[%clk 0:04:57.5]} 4.
Bg2 {[%clk 0:04:52.3]} 4... Nb4 {[%clk 0:04:56.8]} 5. Na3 {[%clk 0:04:51]} 5...
e6 {[%clk 0:04:54.7]} 6. O-O {[%clk 0:04:49.7]} 6... Nf6 {[%clk 0:04:53.2]} 7.
c3 {[%clk 0:04:49.1]} 7... Nc6 {[%clk 0:04:50.8]} 8. Nb1 {[%clk 0:04:47.5]} 8...
h5 {[%clk 0:04:48.5]} 9. c4 {[%clk 0:04:45.6]} 9... dxc4 {[%clk 0:04:41.6]} 10.
Ne5 {[%clk 0:04:35.1]} 10... Nxe5 {[%clk 0:04:28]} 11. dxe5 {[%clk 0:04:35]}
11... Qxd1 {[%clk 0:04:27.1]} 12. Rxd1 {[%clk 0:04:32.9]} 12... Ne4 {[%clk
0:04:26.2]} 13. Be3 {[%clk 0:04:06.2]} 13... h4 {[%clk 0:04:02]} 14. Nd2 {[%clk
0:03:57.9]} 14... Nxd2 {[%clk 0:03:48.3]} 15. Bxb7 {[%clk 0:03:41]} 15... Be4
{[%clk 0:02:27.5]} 16. Bxa8 {[%clk 0:03:37.7]} 16... Bxa8 {[%clk 0:02:27.4]} 17.
Rxd2 {[%clk 0:03:33.4]} 17... hxg3 {[%clk 0:02:26.9]} 18. fxg3 {[%clk
0:03:31.8]} 18... Bd5 {[%clk 0:02:18.4]} 19. Bxa7 {[%clk 0:03:27.3]} 19... Bb4
{[%clk 0:02:08.2]} 20. Rdd1 {[%clk 0:03:21.5]} 20... O-O {[%clk 0:02:00.8]} 21.
a3 {[%clk 0:03:06.5]} 21... Ba5 {[%clk 0:01:50.8]} 22. Bd4 {[%clk 0:03:03.2]}
22... Rb8 {[%clk 0:01:49.3]} 23. Rac1 {[%clk 0:02:56.8]} 23... Rb3 {[%clk
0:01:47.3]} 24. Kf2 {[%clk 0:02:29.9]} 24... Kf8 {[%clk 0:01:32.8]} 25. Bc3
{[%clk 0:02:16.1]} 25... Bb6+ {[%clk 0:01:31.2]} 26. e3 {[%clk 0:02:14.8]} 26...
Ke8 {[%clk 0:01:27.7]} 27. g4 {[%clk 0:02:05.3]} 27... Be4 {[%clk 0:01:23.8]}
28. Rd2 {[%clk 0:01:48.4]} 28... c6 {[%clk 0:01:04.6]} 29. Rcd1 {[%clk
0:01:45.5]} 29... Bd5 {[%clk 0:01:03.4]} 30. h4 {[%clk 0:01:39.7]} 30... Bd8
{[%clk 0:01:01.2]} 31. Kg3 {[%clk 0:01:38.2]} 31... Bb6 {[%clk 0:00:56.5]} 32.
Kf4 {[%clk 0:01:36.9]} 32... f6 {[%clk 0:00:44.5]} 33. e4 {[%clk 0:01:12.4]}
33... fxe5+ {[%clk 0:00:29.2]} 34. Kf3 {[%clk 0:01:11.2]} 34... Bd4 {[%clk
0:00:22.4]} 35. exd5 {[%clk 0:01:01]} 35... cxd5 {[%clk 0:00:22.3]} 36. Rc1
{[%clk 0:00:38.1]} 36... e4+ {[%clk 0:00:20]} 37. Ke2 {[%clk 0:00:37.1]} 37...
Bc5 {[%clk 0:00:17.6]} 38. Bd4 {[%clk 0:00:26.8]} 38... Bd6 {[%clk 0:00:15.2]}
39. Rf1 {[%clk 0:00:18.8]} 39... e5 {[%clk 0:00:14.4]} 40. Bc3 {[%clk
0:00:16.4]} 40... d4 {[%clk 0:00:13.1]} 41. Bb4 {[%clk 0:00:15.5]} 41... Bc7
{[%clk 0:00:10]} 42. Rf8+ {[%clk 0:00:11.8]} 42... Kd7 {[%clk 0:00:09.5]} 43.
Rg8 {[%clk 0:00:11.2]} 43... Kc6 {[%clk 0:00:09.4]} 44. Rxg7 {[%clk 0:00:10.4]}
44... Re3+ {[%clk 0:00:08.3]} 45. Kd1 {[%clk 0:00:08.8]} 45... Rh3 {[%clk
0:00:07.5]} 46. Rg6+ {[%clk 0:00:08.3]} 46... Kd5 {[%clk 0:00:06.7]} 47. h5
{[%clk 0:00:07.8]} 47... e3 {[%clk 0:00:06.1]} 48. Rg2 {[%clk 0:00:06.2]} 48...
Ke4 {[%clk 0:00:05.6]} 49. Kc2 {[%clk 0:00:05.7]} 49... d3+ {[%clk 0:00:04.8]}
50. Kc3 {[%clk 0:00:05.3]} 50... e2 {[%clk 0:00:04.7]} 51. Rxe2+ {[%clk
0:00:04]} 51... dxe2+ {[%clk 0:00:03.9]} 52. Kc2 {[%clk 0:00:03.5]} 52... Rd3
{[%clk 0:00:03.3]} 53. Bd2 {[%clk 0:00:02.6]} 53... c3 {[%clk 0:00:03.2]} 54.
Bxc3 {[%clk 0:00:01.8]} 54... Rxc3+ {[%clk 0:00:02.8]} 55. Kxc3 {[%clk
0:00:01.7]} 55... e1=Q+ {[%clk 0:00:02.5]} 56. Kc4 {[%clk 0:00:01.1]} 56... Qe3
{[%clk 0:00:01.7]} 57. Kb5 {[%clk 0:00:01]} 57... Qd4 {[%clk 0:00:01.5]} 58. Kc6
{[%clk 0:00:00.7]} 58... Qd5+ {[%clk 0:00:01.4]} 0-1

[Event "Live Chess"]
[Site "Chess.com"]
[Date "2024.06.02"]
[Round "-"]
[White "vincents82"]
[Black "LL220284LL"]
[Result "0-1"]
[WhiteElo "2013"]
[BlackElo "2499"]
[TimeControl "300"]
[EndTime "1:37:47 PDT"]
[Termination "LL220284LL won by resignation"]

1. e4 {[%clk 0:04:49.6]} 1... d5 {[%clk 0:04:52.9]} 2. exd5 {[%clk 0:04:48.4]}
2... Qxd5 {[%clk 0:04:52.8]} 3. Nc3 {[%clk 0:04:47.5]} 3... Qa5 {[%clk
0:04:51.3]} 4. d4 {[%clk 0:04:46.6]} 4... c6 {[%clk 0:04:50.4]} 5. Nf3 {[%clk
0:04:46.1]} 5... Nf6 {[%clk 0:04:48.7]} 6. Be2 {[%clk 0:04:44.9]} 6... Bg4
{[%clk 0:04:47.4]} 7. Bd2 {[%clk 0:04:43.8]} 7... Qc7 {[%clk 0:04:46]} 8. O-O
{[%clk 0:04:42.3]} 8... Nbd7 {[%clk 0:04:45.4]} 9. Be3 {[%clk 0:04:41]} 9... e6
{[%clk 0:04:43.8]} 10. Qd2 {[%clk 0:04:39.9]} 10... Bd6 {[%clk 0:04:42.2]} 11.
Rfe1 {[%clk 0:04:38]} 11... Bxf3 {[%clk 0:04:40]} 12. Bxf3 {[%clk 0:04:37]}
12... Bxh2+ {[%clk 0:04:39.4]} 13. Kf1 {[%clk 0:04:36]} 13... Bd6 {[%clk
0:04:38.8]} 14. g3 {[%clk 0:04:32.6]} 14... O-O {[%clk 0:04:35.7]} 15. Kg2
{[%clk 0:04:31.6]} 15... Nd5 {[%clk 0:04:33.1]} 16. Nxd5 {[%clk 0:04:30.2]}
16... exd5 {[%clk 0:04:31.8]} 17. Rh1 {[%clk 0:04:29]} 17... Rae8 {[%clk
0:04:26.4]} 18. Qd3 {[%clk 0:04:27.9]} 18... g6 {[%clk 0:04:25.4]} 19. Bh6
{[%clk 0:04:25.6]} 19... Nf6 {[%clk 0:04:21.6]} 20. Bxf8 {[%clk 0:04:22]} 20...
Bxf8 {[%clk 0:04:21.5]} 21. Rae1 {[%clk 0:04:19.8]} 21... Qd7 {[%clk 0:04:14.3]}
22. Qd2 {[%clk 0:04:14.8]} 22... Rxe1 {[%clk 0:04:00]} 23. Rxe1 {[%clk
0:04:13.4]} 23... Ne8 {[%clk 0:03:59.2]} 24. Qe3 {[%clk 0:04:10.6]} 24... Nd6
{[%clk 0:03:56.9]} 25. c3 {[%clk 0:04:06.3]} 25... h5 {[%clk 0:03:49.8]} 26. Qf4
{[%clk 0:04:00.3]} 26... Nf5 {[%clk 0:03:42.6]} 27. Qe5 {[%clk 0:03:56.2]} 27...
Nd6 {[%clk 0:03:31.5]} 28. Bd1 {[%clk 0:03:44.4]} 28... Nc4 {[%clk 0:03:28.4]}
29. Qe2 {[%clk 0:03:43.3]} 29... Kh7 {[%clk 0:03:21.4]} 30. Bb3 {[%clk
0:03:39.5]} 30... Nd6 {[%clk 0:03:18.4]} 31. Bc2 {[%clk 0:03:38.4]} 31... Kg8
{[%clk 0:03:16.2]} 32. Qf3 {[%clk 0:03:26.2]} 32... Bg7 {[%clk 0:03:05.7]} 33.
Rh1 {[%clk 0:03:21.5]} 33... a5 {[%clk 0:02:58.4]} 34. Bd1 {[%clk 0:03:17.6]}
34... Ne4 {[%clk 0:02:54.9]} 35. Bc2 {[%clk 0:03:15.7]} 35... Nd6 {[%clk
0:02:52.8]} 36. Bd1 {[%clk 0:03:14.9]} 36... b5 {[%clk 0:02:49.5]} 37. g4 {[%clk
0:03:13.6]} 37... hxg4 {[%clk 0:02:44.7]} 38. Qxg4 {[%clk 0:03:12.6]} 38... Qe7
{[%clk 0:02:43.8]} 39. Qe2 {[%clk 0:03:06.6]} 39... Qg5+ {[%clk 0:02:41.9]} 40.
Qg4 {[%clk 0:03:05.6]} 40... Qe7 {[%clk 0:02:40.8]} 41. f3 {[%clk 0:03:01.9]}
41... Nf5 {[%clk 0:02:38.3]} 42. Qf4 {[%clk 0:02:52.4]} 42... b4 {[%clk
0:02:19.6]} 43. Kf2 {[%clk 0:02:43.5]} 43... bxc3 {[%clk 0:02:13.2]} 44. bxc3
{[%clk 0:02:42.5]} 44... c5 {[%clk 0:01:49.3]} 45. Re1 {[%clk 0:02:30.6]} 45...
Qd8 {[%clk 0:01:47.9]} 46. Ba4 {[%clk 0:02:23.8]} 46... Bf8 {[%clk 0:01:28]} 47.
Re8 {[%clk 0:02:12.9]} 47... Qf6 {[%clk 0:01:26]} 48. Bc2 {[%clk 0:01:55.2]}
48... Qc6 {[%clk 0:01:17.5]} 49. Re2 {[%clk 0:01:44.6]} 49... Bd6 {[%clk
0:01:08.3]} 50. Qg4 {[%clk 0:01:40.5]} 50... Ng3 {[%clk 0:00:49.6]} 51. Re1
{[%clk 0:01:37.6]} 51... cxd4 {[%clk 0:00:39.1]} 52. Bxg6 {[%clk 0:01:35.6]}
52... dxc3 {[%clk 0:00:36.5]} 53. Bc2+ {[%clk 0:01:24.9]} 53... Kf8 {[%clk
0:00:33.5]} 54. Qf4 {[%clk 0:01:13.5]} 54... Bxf4 {[%clk 0:00:31.5]} 0-1

[Event "Live Chess"]
[Site "Chess.com"]
[Date "2024.06.02"]
[Round "-"]
[White "gunslinger222"]
[Black "r0ad_t0-gm"]
[Result "1-0"]
[WhiteElo "2262"]
[BlackElo "2247"]
[TimeControl "300"]
[EndTime "1:37:50 PDT"]
[Termination "gunslinger222 won by resignation"]

1. d4 {[%clk 0:04:57.3]} 1... Nf6 {[%clk 0:04:59.2]} 2. c4 {[%clk 0:04:56.4]}
2... g6 {[%clk 0:04:58.7]} 3. h4 {[%clk 0:04:53.6]} 3... Bg7 {[%clk 0:04:51.7]}
4. Nc3 {[%clk 0:04:51.3]} 4... d6 {[%clk 0:04:49.9]} 5. e4 {[%clk 0:04:50.4]}
5... Nc6 {[%clk 0:04:47.3]} 6. Be2 {[%clk 0:04:47.3]} 6... e5 {[%clk 0:04:41.9]}
7. Nf3 {[%clk 0:04:44]} 7... Bg4 {[%clk 0:04:39.5]} 8. d5 {[%clk 0:04:36.9]}
8... Bxf3 {[%clk 0:04:33.1]} 9. dxc6 {[%clk 0:04:32.1]} 9... Bxe2 {[%clk
0:04:25.5]} 10. Qxe2 {[%clk 0:04:27.7]} 10... bxc6 {[%clk 0:04:24.2]} 11. g4
{[%clk 0:04:25.6]} 11... O-O {[%clk 0:04:17.8]} 12. h5 {[%clk 0:04:24]} 12... d5
{[%clk 0:04:12.7]} 13. h6 {[%clk 0:04:08.7]} 13... Bh8 {[%clk 0:04:11.5]} 14. g5
{[%clk 0:04:02.4]} 14... Nxe4 {[%clk 0:04:09.9]} 15. Nxe4 {[%clk 0:04:00.4]}
15... dxe4 {[%clk 0:04:09.8]} 16. Qxe4 {[%clk 0:03:59.4]} 16... Qd4 {[%clk
0:04:04]} 17. f3 {[%clk 0:03:53.3]} 17... Rad8 {[%clk 0:03:55.1]} 18. Be3 {[%clk
0:03:51]} 18... Qxb2 {[%clk 0:03:47.7]} 19. O-O {[%clk 0:03:36.7]} 19... Qc3
{[%clk 0:03:32.8]} 20. Rac1 {[%clk 0:03:16.3]} 20... Qd3 {[%clk 0:03:29]} 21.
Bxa7 {[%clk 0:03:14]} 21... Qxe4 {[%clk 0:03:10.7]} 22. fxe4 {[%clk 0:03:13.9]}
22... f6 {[%clk 0:02:54]} 23. Bc5 {[%clk 0:03:10.4]} 23... Rf7 {[%clk
0:02:52.8]} 24. Rb1 {[%clk 0:02:57.4]} 24... fxg5 {[%clk 0:02:43.9]} 25. Rxf7
{[%clk 0:02:55.5]} 25... Kxf7 {[%clk 0:02:43.8]} 26. Rb7 {[%clk 0:02:54.7]}
26... Rd7 {[%clk 0:02:26.1]} 27. a4 {[%clk 0:02:45.3]} 27... Bf6 {[%clk
0:01:49]} 28. a5 {[%clk 0:02:44]} 28... Be7 {[%clk 0:01:48.4]} 29. Bxe7 {[%clk
0:02:39]} 29... Kxe7 {[%clk 0:01:48.3]} 30. a6 {[%clk 0:02:38.1]} 30... Rd1+
{[%clk 0:01:33.6]} 31. Kf2 {[%clk 0:02:36.8]} 31... Ra1 {[%clk 0:01:33.5]} 32.
Rxc7+ {[%clk 0:02:07.4]} 32... Kd6 {[%clk 0:01:32.8]} 33. Rxh7 {[%clk
0:02:06.1]} 33... Rxa6 {[%clk 0:01:31.9]} 34. Rg7 {[%clk 0:02:03.9]} 34... Ra3
{[%clk 0:01:02.1]} 35. Kg2 {[%clk 0:02:02.2]} 35... Ra2+ {[%clk 0:00:57.1]} 36.
Kg3 {[%clk 0:02:01.3]} 36... Ra1 {[%clk 0:00:52.6]} 37. Rxg6+ {[%clk 0:01:49.7]}
37... Kd7 {[%clk 0:00:42.4]} 38. Kg4 {[%clk 0:01:43.6]} 38... Rh1 {[%clk
0:00:36.6]} 39. Kxg5 {[%clk 0:01:39.7]} 39... Ke7 {[%clk 0:00:32.8]} 40. Rg7+
{[%clk 0:01:36.1]} 40... Ke6 {[%clk 0:00:31.2]} 41. c5 {[%clk 0:01:26.1]} 41...
Rg1+ {[%clk 0:00:27.3]} 42. Kh5 {[%clk 0:01:24.3]} 42... Rh1+ {[%clk 0:00:27.2]}
43. Kg6 {[%clk 0:01:23.2]} 43... Rg1+ {[%clk 0:00:21.5]} 44. Kh7 {[%clk
0:01:22.5]} 44... Rh1 {[%clk 0:00:21.4]} 45. Rg6+ {[%clk 0:01:20.5]} 45... Kf7
{[%clk 0:00:19.9]} 46. Rxc6 {[%clk 0:01:18.3]} 46... Rg1 {[%clk 0:00:18]} 47.
Rc7+ {[%clk 0:01:15]} 47... Kf8 {[%clk 0:00:17.4]} 48. c6 {[%clk 0:01:12.5]}
48... Rg2 {[%clk 0:00:15.5]} 49. Rd7 {[%clk 0:01:08.9]} 49... Rc2 {[%clk
0:00:13.5]} 50. c7 {[%clk 0:01:08.1]} 50... Ke8 {[%clk 0:00:13.1]} 51. Rd8+
{[%clk 0:01:06.7]} 51... Kf7 {[%clk 0:00:12.7]} 52. c8=Q {[%clk 0:01:05.2]}
52... Rxc8 {[%clk 0:00:12.6]} 53. Rxc8 {[%clk 0:01:04.1]} 53... Kf6 {[%clk
0:00:12.5]} 54. Re8 {[%clk 0:01:02.3]} 1-0